Workbook

Sheet CoverSheet
F12: Macros must be enabled to use tool

Sheet Data Entry & Emissions (hidden)
A1: STEP 1. Select Facility and Reporting Type | K1: Unit Reporting
B2: Facility | C2: Marion County
B3: DOE / EIA ORIS Code | C3: =VLOOKUP(C2,Facility_Info,4) -> 50630
B4: # of MWCs | C4: =VLOOKUP(C2,Facility_Info,5) -> 2
B5: Max MWC Rated Input Cap. MMBtu/hr | C5: =MAX(VLOOKUP(C2,Facility_Info,9),VLOOKUP(C2,Facility_Info,15)) -> 107.26
A7: STEP 2: Verify Boiler Design Data
A8: Boiler design information is critical to the Tier 2 calculation. Please confirm that the figures below are the correct design values.
C9: Unit 1 | D9: Unit 2 | E9: Unit 3 | F9: Unit 4 | G9: Unit 5 | H9: Unit 6 | I9: Other Stationary Sources
B10: Unit Number | C10: 1 | D10: 2 | E10: 3 | F10: 4 | G10: 5 | H10: 6
B11: Included in Sum? | C11: Yes | D11: =IF($K$1="Aggregated","No",IF($C$4>=2,"Yes","No")) -> Yes | E11: =IF($K$1="Aggregated","No",IF($C$4>=3,"Yes","No")) -> No | F11: =IF($K$1="Aggregated","No",IF($C$4>=4,"Yes","No")) -> No | G11: =IF($K$1="Aggregated","No",IF($C$4>=5,"Yes","No")) -> No | H11: =IF($K$1="Aggregated","No",IF($C$4>=6,"Yes","No")) -> No | I11: Yes
B12: Max Rated Input Cap. (MMBtu/hr) | C12: =IF(C$11="Yes",IF(VLOOKUP($C$2,Facility_Info,13)=C$10,VLOOKUP($C$2,Facility_Info,15),VLOOKUP($C$2,Facility_Info,9)),"") -> 107.26 | D12: 107.26
B13: Design Steam (lbs/hr) | C13: =IF(C$11="Yes",IF(VLOOKUP($C$2,Facility_Info,13)=C$10,VLOOKUP($C$2,Facility_Info,16)*1000,VLOOKUP($C$2,Facility_Info,10)*1000),"") -> 66700 | D13: 66700
B14: B | C14: =IF(C$11="Yes",C12/C13,"") -> 0.001608095952 | D14: =IF(D$11="Yes",D12/D13,"") -> 0.001608095952 | J14: Ratio of the boiler's maximum rated heat input capacity to its design rated steam output capacity (MMBtu/lb steam)
A16: STEP 3: Input Data
A17: Complete the boxes highlighted in green below and on the "Biogenic Test Data" tab. Red boxes are calculated values and are LOCKED. Facilities with auxiliary boilers (not fired by MSW) or other combustion sources (e.g., oil fired boilers used for space heating), use the column labeled "Other Stationary Sources" to calculate emissions. Remember, any very large sources (>250 MMBtu/hr) must be tracked and reported separately. Smaller sources may be combined into one or more groups for reporting.
B18: Data | C18: =C9 -> Unit 1 | D18: =D9 -> Unit 2 | E18: Unit 3 | F18: Unit 4 | G18: Unit 5 | H18: Unit 6 | I18: Other Stationary Sources | J18: Notes
B19: Total Steam (klbs) | C19: 537758.1 | D19: 530298.5 | J19: Annual steam production
B20: Aux. Fuel 1 | C20: Nat. Gas (therms) | J20: Select auxiliary fuel from drop down menu
B21: Aux. Fuel 1 Consumption | C21: 333634.1 | D21: 229026.9 | J21: Annual natural gas consumption
B22: Aux. Fuel 2 | J22: Repeat for second aux. fuel combusted at facility
B23: Aux. Fuel 2 Consumption
B24: Aux. Fuel 3
B25: Aux. Fuel 3 Consumption
B26: MSW Throughput (tons) | C26: 90687.325 | D26: 89105.905 | J26: Annual MSW processed
B27: Calc % Carbon in MSW | C27: =IF(C26="","",C35*1.1*(12/44)/C26) -> 0.2544610357 | D27: =IF(D26="","",D35*1.1*(12/44)/D26) -> 0.2569111925
B28: fh | C28: 0.5 | D28: 0.5 | E28: 0.5 | F28: 0.5 | G28: 0.5 | H28: 0.5 | J28: Fraction of auxiliary fuel expended for boiler heating
B29: MSW Steam (klbs) | C29: =IF(C14="","",C19-f_h/C14/1000*(C21*IF(C21="",0,VLOOKUP($C20,Aux_FuelData,5))+C23*IF(C23="",0,VLOOKUP($C22,Aux_FuelData,5))+C25*IF(C25="",0,VLOOKUP($C24,Aux_FuelData,5)))) -> 527384.5244 | D29: 523177.4417
A31: STEP 4: Review Emissions
B32: =CONCATENATE(C2," GHG Emissions for 40 CFR 98 Reporting") -> Marion County GHG Emissions for 40 CFR 98 Reporting
C33: =C18 -> Unit 1 | D33: Unit 2 | E33: Unit 3 | F33: Unit 4 | G33: Unit 5 | H33: Unit 6 | I33: Other Stationary Sources | J33: TOTAL
B34: Emissions from MSW Combustion
B35: Total CO2 (m.t.) | C35: =IF(C$11="No","",0.001*(C29*1000)*C14*EF_MSW_CO2) -> 76921.30213 | D35: 76307.68103 | J35: =SUMIF(C$11:H$11,"Yes",C35:H35) -> 153228.9832
B36: Fossil CO2 (m.t.) | C36: =IF(C$11="No","",C35*(1-f_Biogenic)) -> 38652.95432 | D36: =IF(D$11="No","",D35*(1-f_Biogenic)) -> 38344.60972 | J36: =SUMIF(C$11:H$11,"Yes",C36:H36) -> 76997.56404
B37: Biogenic CO2 (m.t.) | C37: =IF(C$11="No","",C35*f_Biogenic) -> 38268.34781 | D37: =IF(D$11="No","",D35*f_Biogenic) -> 37963.07131 | J37: 76231.41912
B38: CH4 (m.t.) | C38: =IF(C$11="No","",0.001*(C29*1000)*C14*EF_MSW_CH4) -> 27.1387174 | D38: 26.92222484 | J38: 54.06094224
B39: N2O (m.t.) | C39: =IF(C$11="No","",0.001*(C29*1000)*C14*EF_MSW_N2O) -> 3.561956659 | D39: 3.53354201 | J39: 7.095498669
B40: CH4 as CO2e (m.t.) | C40: =IF(C$11="No","",C38*GWP_CH4) -> 678.467935 | D40: =IF(D$11="No","",D38*GWP_CH4) -> 673.055621 | J40: 1351.523556
B41: N2O as CO2e (m.t.) | C41: =IF(C$11="No","",C39*GWP_N2O) -> 1061.463084 | D41: =IF(D$11="No","",D39*GWP_N2O) -> 1052.995519 | J41: 2114.458603
B43: Emissions from Aux Fuel 1: | C43: =C20 -> Nat. Gas (therms)
B44: =IF(C43="Wood (ton)",$B$37,$B$36) -> Fossil CO2 (m.t.) | C44: =IF($C20="",0,C21*VLOOKUP($C20,Aux_FuelData,5)*VLOOKUP($C20,Aux_FuelData,2)/1000) -> 1770.262535 | D44: 1215.216731 | E44: 0 | F44: 0 | G44: 0 | H44: 0 | I44: 0 | J44: =SUMIF(C$11:H$11,"Yes",C44:H44)+I44 -> 2985.479266
B45: CH4 (m.t.) | C45: =IF($C20="",0,C21*VLOOKUP($C20,Aux_FuelData,5)*VLOOKUP($C20,Aux_FuelData,3)/1000) -> 0.03336341 | D45: 0.02290269 | E45: 0 | F45: 0 | G45: 0 | H45: 0 | I45: 0 | J45: =SUMIF(C$11:H$11,"Yes",C45:H45)+I45 -> 0.0562661
B46: N2O (m.t.) | C46: =IF($C20="",0,C21*VLOOKUP($C20,Aux_FuelData,5)*VLOOKUP($C20,Aux_FuelData,4)/1000) -> 0.003336341 | D46: 0.002290269 | E46: 0 | F46: 0 | G46: 0 | H46: 0 | I46: 0 | J46: 0.00562661
B47: CH4 as CO2e (m.t.) | C47: =C45*GWP_CH4 -> 0.83408525 | D47: 0.57256725 | E47: 0 | F47: 0 | G47: 0 | H47: 0 | I47: 0 | J47: 1.4066525
B48: N2O as CO2e (m.t.) | C48: =C46*GWP_N2O -> 0.994229618 | D48: 0.682500162 | E48: 0 | F48: 0 | G48: 0 | H48: 0 | I48: 0 | J48: 1.67672978
B50: Emissions from Aux Fuel 2: | C50: =C22 -> 0
B51: =IF(C50="Wood (ton)",$B$37,$B$36) -> Fossil CO2 (m.t.) | C51: =IF($C22="",0,C23*VLOOKUP($C22,Aux_FuelData,5)*VLOOKUP($C22,Aux_FuelData,2)/1000) -> 0 | D51: 0 | E51: 0 | F51: 0 | G51: 0 | H51: 0 | I51: 0 | J51: =SUMIF(C$11:H$11,"Yes",C51:H51)+I51 -> 0
B52: CH4 (m.t.) | C52: =IF($C22="",0,C23*VLOOKUP($C22,Aux_FuelData,5)*VLOOKUP($C22,Aux_FuelData,3)/1000) -> 0 | D52: 0 | E52: 0 | F52: 0 | G52: 0 | H52: 0 | I52: 0 | J52: 0
B53: N2O (m.t.) | C53: =IF($C22="",0,C23*VLOOKUP($C22,Aux_FuelData,5)*VLOOKUP($C22,Aux_FuelData,4)/1000) -> 0 | D53: 0 | E53: 0 | F53: 0 | G53: 0 | H53: 0 | I53: 0 | J53: 0
B54: CH4 as CO2e (m.t.) | C54: =C52*GWP_CH4 -> 0 | D54: 0 | E54: 0 | F54: 0 | G54: 0 | H54: 0 | I54: 0 | J54: 0
B55: N2O as CO2e (m.t.) | C55: =C53*GWP_N2O -> 0 | D55: 0 | E55: 0 | F55: 0 | G55: 0 | H55: 0 | I55: 0 | J55: 0
B57: Emissions from Aux Fuel 3: | C57: =C24 -> 0
B58: =IF(C57="Wood (ton)",$B$37,$B$36) -> Fossil CO2 (m.t.) | C58: =IF($C24="",0,C25*VLOOKUP($C24,Aux_FuelData,5)*VLOOKUP($C24,Aux_FuelData,2)/1000) -> 0 | D58: 0 | E58: 0 | F58: 0 | G58: 0 | H58: 0 | I58: 0 | J58: =SUMIF(C$11:H$11,"Yes",C58:H58)+I58 -> 0
B59: CH4 (m.t.) | C59: =IF($C24="",0,C25*VLOOKUP($C24,Aux_FuelData,5)*VLOOKUP($C24,Aux_FuelData,3)/1000) -> 0 | D59: 0 | E59: 0 | F59: 0 | G59: 0 | H59: 0 | I59: 0 | J59: 0
B60: N2O (m.t.) | C60: =IF($C24="",0,C25*VLOOKUP($C24,Aux_FuelData,5)*VLOOKUP($C24,Aux_FuelData,4)/1000) -> 0 | D60: 0 | E60: 0 | F60: 0 | G60: 0 | H60: 0 | I60: 0 | J60: 0
B61: CH4 as CO2e (m.t.) | C61: =C59*GWP_CH4 -> 0 | D61: =D59*GWP_CH4 -> 0 | E61: 0 | F61: 0 | G61: 0 | H61: 0 | I61: 0 | J61: 0
B62: N2O as CO2e (m.t.) | C62: =C60*GWP_N2O -> 0 | D62: =D60*GWP_N2O -> 0 | E62: 0 | F62: 0 | G62: 0 | H62: 0 | I62: 0 | J62: 0
B64: Summary (m.t.)
B65: Fossil CO2 | C65: =IF(C36="",0,C36)+SUMIF($B44:$B62,$B$36,C44:C62) -> 40423.21686 | D65: =IF(D36="",0,D36)+SUMIF($B44:$B62,$B$36,D44:D62) -> 39559.82645 | E65: 0 | F65: 0 | G65: 0 | H65: 0 | I65: 0 | J65: =SUMIF(C$11:H$11,"Yes",C65:H65)+I65 -> 79983.0433
B66: Biogenic CO2 | C66: =IF(C37="",0,C37)+SUMIF($B44:$B62,$B$37,C44:C62) -> 38268.34781 | D66: =IF(D37="",0,D37)+SUMIF($B44:$B62,$B$37,D44:D62) -> 37963.07131 | E66: 0 | F66: 0 | G66: 0 | H66: 0 | I66: 0 | J66: 76231.41912
B67: CH4 | C67: =SUM(C38,C45,C52,C59) -> 27.17208081 | D67: =SUM(D38,D45,D52,D59) -> 26.94512753 | E67: 0 | F67: 0 | G67: 0 | H67: 0 | I67: 0 | J67: 54.11720834
B68: N2O | C68: =SUM(C39,C46,C53,C60) -> 3.565293 | D68: =SUM(D39,D46,D53,D60) -> 3.535832279 | E68: 0 | F68: 0 | G68: 0 | H68: 0 | I68: 0 | J68: 7.101125279
B69: CH4 as CO2e | C69: =C67*GWP_CH4 -> 679.3020203 | D69: =D67*GWP_CH4 -> 673.6281882 | E69: 0 | F69: 0 | G69: 0 | H69: 0 | I69: 0 | J69: 1352.930208
B70: N2O as CO2e | C70: =C68*GWP_N2O -> 1062.457314 | D70: =D68*GWP_N2O -> 1053.678019 | E70: 0 | F70: 0 | G70: 0 | H70: 0 | I70: 0 | J70: =SUMIF(C$11:H$11,"Yes",C70:H70)+I70 -> 2116.135333
B72: Total CO2e (m.t., excl. bio. CO2) | C72: =C65+C69+C70 -> 42164.97619 | D72: 41287.13266 | E72: 0 | F72: 0 | G72: 0 | H72: 0 | I72: 0 | J72: =IF(SUM(J65,J69,J70)<>SUMIF(C$11:H$11,"Yes",C72:H72)+I72,"ERROR",SUM(J65,J69,J70)) -> 83452.10885
B74: =IF(ISERROR((J65+J66)*1.1*(12/44)/SUM(C26:H26)),"",IF((J65+J66)*1.1*(12/44)/SUM(C26:H26)>0.34,"Your total (fossil & biogenic) CO2 emissions are higher than the expected range. Please check your inputs.",IF((J65+J66)*1.1*(12/44)/SUM(C26:H26)<0.22,"Your total (fossil & biogenic) CO2 emissions are lower than the expected range. Please check your inputs.",""))) -> 

Sheet MSW Summary
A3: Emissions from MSW Combustion | B3: Unit 1 | C3: Unit 2
A4: Total CO2 (MT) | B4: ='Data Entry & Emissions'!$C$35 -> 76921.30213 | C4: ='Data Entry & Emissions'!$D$35 -> 76307.68103
A5: Biogenic CO2 (MT) | B5: ='Data Entry & Emissions'!$C$37 -> 38268.34781 | C5: ='Data Entry & Emissions'!$D$37 -> 37963.07131
A6: Fossil CO2 (MT) | B6: ='Data Entry & Emissions'!$C$36 -> 38652.95432 | C6: ='Data Entry & Emissions'!$D$36 -> 38344.60972
A7: CH4 as CO2e (MT) | B7: ='Data Entry & Emissions'!$C$40 -> 678.467935 | C7: ='Data Entry & Emissions'!$D$40 -> 673.055621
A8: N2O as CO2e (MT) | B8: ='Data Entry & Emissions'!$C$41 -> 1061.463084 | C8: ='Data Entry & Emissions'!$D$41 -> 1052.995519
A9: Total Fossil CO2e (MT) | B9: =SUM(B6:B8) -> 40392.88534 | C9: =SUM(C6:C8) -> 40070.66086
A11: Entries into ODEQ tool

Sheet Biogenic Test Data (hidden)
B2: Quarterly CO2 Analysis Results
B3: Biogenic Sample | C3: Sample Date | D3: Biomass CO2 Content
C4: 2021-02-02 | D4: 0.51
C5: 2021-04-13 | D5: 0.48
C6: 2021-08-19 | D6: 0.51
C7: 2021-10-11 | D7: 0.49
B16: Annual Average | D16: =AVERAGE(D4:D15) -> 0.4975

Sheet Emission Factors (hidden)
B2: Default Emission Factors & HHVs | H2: Expected Range | K2: Default High Heat Values (40 CFFR 98, Table C-1)
B3: Fuel | C3: CO2 Emission Factor (kg CO2 / MMBtu) | D3: CH4 Emission Factor (kg CH4 / MMBtu) | E3: N2O Emission Factor (kg N2O / MMBtu) | F3: High Heat Value | G3: Default High Heat Value Units (MMBtu / ?) | H3: Minimum | I3: Maximum
B4: #1 Fuel Oil (kgal.) | C4: 73.25 | D4: 0.003 | E4: 0.0006 | F4: 139 | G4: kgal. | H4: 0 | I4: 1000 | K4: 139
B5: #2 Fuel Oil (kgal.) | C5: 73.96 | D5: 0.003 | E5: 0.0006 | F5: 138 | G5: kgal. | H5: 0 | I5: 1000 | K5: 138
B6: Kerosene (kgal.) | C6: 75.2 | D6: 0.003 | E6: 0.0006 | F6: 135 | G6: kgal. | H6: 0 | I6: 1000 | K6: 135
B7: LPG (kgal.) | C7: 61.71 | D7: 0.003 | E7: 0.0006 | F7: 92 | G7: kgal. | H7: 0 | I7: 1000 | K7: 92
B8: Nat. Gas (kscf) | C8: 53.06 | D8: 0.001 | E8: 0.0001 | F8: 1.058 | G8: kscf | H8: 0 | I8: 500000 | K8: 1.026
B9: Nat. Gas (MMBtu) | C9: 53.06 | D9: 0.001 | E9: 0.0001 | F9: 1 | G9: MMBtu | H9: 0 | I9: 500000 | K9: 1
B10: Nat. Gas (therms) | C10: 53.06 | D10: 0.001 | E10: 0.0001 | F10: 0.1 | G10: therm | H10: 0 | I10: 5000000 | K10: 0.1
B11: Propane (kgal.) | C11: 62.87 | D11: 0.003 | E11: 0.0006 | F11: 91 | G11: kgal. | H11: 0 | I11: 1000 | K11: 91
B12: Used Oil (kgal.) | C12: 74 | D12: 0.003 | E12: 0.0006 | F12: 138 | G12: kgal. | H12: 0 | I12: 1000 | K12: 138
B13: Wood (ton) | C13: 93.8 | D13: 0.0072 | E13: 0.0036 | F13: 17.48 | G13: ton | H13: 0 | I13: 50000 | K13: 17.48
B14: MSW | C14: 90.7 | D14: 0.032 | E14: 0.0042 | F14: n/a | G14: n/a
B17: Global Warming Potentials (GWP)
B18: CH4 | C18: 25
B19: N2O | C19: 298

Sheet Facility Info (hidden)
A1: 1 | B1: 2 | C1: 3 | D1: 4 | E1: 5 | F1: 6 | G1: 7 | H1: 8 | I1: 9 | J1: 10 | K1: 11 | L1: 12 | M1: 13 | N1: 14 | O1: 15 | P1: 16 | Q1: 17
H2: Original Units | M2: Additional Unit(s)
A3: Facility | B3: State | C3: Ops Code | D3: DOE ORIS ID | E3: Total # of MWCs | F3: MWC Type | G3: Year of Initial Comm. Operation | H3: Design HHV (Btu/lb) | I3: Max. Rated Input Cap. (mmBTU/hr) | J3: Design Steam Flow (Klbs/hr) | K3: Design Heat Input/Design Steam Flow (mmBTU / lb) | L3: All MWCs Same B? | M3: Unit # | N3: Design HHV (Btu/lb) | O3: Max Rated Input Cap. (mmBTU/hr) | P3: Design Steam Flow (Klbs/hr) | Q3: Design Heat Input/Design Steam Flow (mmBTU / lb)
A4: Alexandria | B4: VA | C4: ALX | D4: 50663 | E4: 3 | F4: MB | G4: 1988 | H4: 4500 | I4: 121.8 | J4: 78.46 | K4: =I4/J4/1000 -> 0.00155238338 | L4: Yes
A5: Babylon | B5: NY | C5: BAB | D5: 50649 | E5: 2 | F5: MB | G5: 1989 | H5: 4450 | I5: 139 | J5: 86.11 | K5: =I5/J5/1000 -> 0.001614214377 | L5: Yes
A6: Bristol | B6: CT | C6: BRI | D6: 50648 | E6: 2 | F6: MB | G6: 1988 | H6: 4500 | I6: 121.87 | J6: 73.2 | K6: 0.00166489071 | L6: Yes
A7: Burnaby | B7: BC | C7: BUR | D7: n/a | E7: 3 | F7: MB | H7: 5400 | I7: =5400*(800/3)*2000/24/1000000 -> 120 | J7: 80.3 | K7: 0.001494396015 | L7: Yes
A8: Camden | B8: NJ | C8: CAM | D8: 10435 | E8: 3 | F8: MB | H8: 5300 | I8: 154.58 | J8: 105.5 | K8: 0.00146521327 | L8: Yes
A9: Delaware Valley | B9: PA | C9: DLV | D9: 10746 | E9: 6 | F9: MB | G9: 1992 | H9: 4903 | I9: 194 | J9: 140.3 | K9: 0.001382751247 | L9: Yes
A10: Durham-York | B10: ON | C10: DYK | D10: n/a | E10: 2 | F10: MB | G10: 2015 | H10: 5589 | I10: =5589*(481/2)*2000/24/1000000 -> 112.012875 | J10: 74.186 | K10: 0.001509892365 | L10: Yes
A11: Essex County | B11: NJ | C11: ESC | D11: 10643 | E11: 3 | F11: MB | G11: 1990 | H11: 5300 | I11: 336.55 | J11: 217.152 | K11: 0.00154983606 | L11: Yes
A12: Fairfax County | B12: VA | C12: FFX | D12: 50658 | E12: 4 | F12: MB | G12: 1990 | H12: 5500 | I12: 343.8 | J12: 205.625 | K12: 0.001671975684 | L12: Yes
A13: Harrisburg | B13: PA | C13: HRB | D13: 10118 | E13: 3 | F13: MB | G13: 1972 | H13: 5200 | I13: 115.56 | J13: 68.57 | K13: 0.00168528511 | L13: Yes
A14: Haverhill | B14: MA | C14: HAV | D14: 50661 | E14: 2 | F14: MB | G14: 1989 | H14: 5000 | I14: 343.75 | J14: 198.219 | K14: 0.001734192989 | L14: Yes
A15: Hempstead | B15: NY | C15: HEM | D15: 10642 | E15: 3 | F15: MB | G15: 1989 | H15: 5200 | I15: 337.13 | J15: 210 | K15: 0.001605380952 | L15: Yes
A16: Hennepin County | B16: MN | C16: HER | D16: 10013 | E16: 2 | F16: MB | G16: 1989 | H16: 5200 | I16: 262.6 | J16: 171.376 | K16: 0.00153230324 | L16: Yes
A17: Hillsborough County | B17: FL | C17: HIL | D17: 50858 | E17: 4 | F17: MB | G17: 1987 | H17: 4500 | I17: =4500*400*2000/24/1000000 -> 150 | J17: 94.27 | K17: 0.001591174287 | L17: No | M17: 4 | N17: 5000 | O17: 254 | P17: 167.219 | Q17: =O17/P17/1000 -> 0.001518966146
A18: Honolulu (H-Power) | B18: HI | C18: HRR | D18: 10334 | E18: 3 | F18: RDF/MB | G18: 1990 | H18: 5137 | I18: 366 | J18: 244 | K18: 0.0015 | L18: No | M18: 3 | N18: 5400 | O18: 405 | P18: 283 | Q18: =O18/P18/1000 -> 0.001431095406
A19: Huntington | B19: NY | C19: HTG | D19: 50656 | E19: 3 | F19: MB | G19: 1991 | H19: 6000 | I19: 125 | J19: 74.847 | K19: 0.001670073617 | L19: Yes
A20: Huntsville | B20: AL | C20: HTV | D20: n/a | E20: 2 | F20: MB | G20: 1990 | H20: 4500 | I20: 129.4 | J20: 89.31 | K20: 0.001448885903 | L20: Yes
A21: Indianapolis | B21: IN | C21: IND | D21: 50647 | E21: 3 | F21: MB | G21: 1988 | H21: 4792 | I21: 314.5 | J21: 172.818 | K21: 0.001819833582 | L21: Yes
A22: Kent County | B22: MI | C22: KEN | D22: 50860 | E22: 2 | F22: MB | G22: 1990 | H22: 4800 | I22: 130 | J22: 76.8 | K22: 0.001692708333 | L22: Yes
A23: Lake County | B23: FL | C23: NRG | D23: 50629 | E23: 2 | F23: MB | G23: 1991 | H23: 5000 | I23: 110 | J23: 64.4 | K23: 0.001708074534 | L23: Yes
A24: Lancaster County | B24: PA | C24: LAN | D24: 50859 | E24: 3 | F24: MB | G24: 1991 | H24: 5000 | I24: 166.6 | J24: 96.72 | K24: 0.001722497932 | L24: Yes
A25: Lee County | B25: FL | C25: LEE | D25: 52010 | E25: 3 | F25: MB | G25: 1994 | H25: 5000 | I25: 275 | J25: 170.299 | K25: 0.001614806898 | L25: No | M25: 3 | O25: 265 | P25: 172.267 | Q25: =O25/P25/1000 -> 0.001538309717
A26: Long Beach | B26: CA | C26: LGB | D26: 50837 | E26: 3 | F26: MB | G26: 1988 | H26: 4654 | I26: =4654*1380*2000/24/1000000/E26 -> 178.4033333 | J26: 117.17 | K26: 0.001522602486 | L26: Yes
A27: MacArthur | B27: NY | C27: MAC | D27: 51038 | E27: 2 | F27: MB | G27: 1990 | H27: 4500 | I27: 93.75 | J27: 57.9 | K27: 0.001619170984 | L27: Yes
A28: Marion County | B28: OR | C28: MAR | D28: 50630 | E28: 2 | F28: MB | G28: 1987 | H28: 4500 | I28: 107.26 | J28: 66.7 | K28: 0.001608095952 | L28: Yes
A29: Montgomery County | B29: MD | C29: MON | D29: 50657 | E29: 3 | F29: MB | G29: 1995 | H29: 5500 | I29: 275 | J29: 171.1 | K29: 0.001607247224 | L29: Yes
A30: Niagara Falls | B30: NY | C30: NIA | D30: 50472 | E30: 2 | F30: MB | G30: 1980 | H30: 5200 | I30: 452.05 | J30: 299.446 | K30: 0.0015096211 | L30: Yes
A31: Onondaga County | B31: NY | C31: ONO | D31: 50662 | E31: 3 | F31: MB | G31: 1995 | H31: 6000 | I31: 165 | J31: 103.942 | K31: 0.001587423756 | L31: Yes
A32: Pasco County | B32: FL | C32: PAS | D32: 50666 | E32: 3 | F32: MB | G32: 1991 | H32: 4800 | I32: 140 | J32: 90.367 | K32: 0.001549238107 | L32: Yes
A33: Pinellas | B33: FL | C33: PIN | D33: 50884 | E33: 3 | F33: MB | H33: 4800 | I33: =4800*(3000/3)*2000/24/1000000 -> 400 | J33: 244 | K33: 0.001639344262 | L33: Yes
A34: Pittsfield | B34: MA | C34: PIT | D34: n/a | E34: 2 | F34: MB | G34: 1981 | H34: 4500 | I34: 45 | J34: 34 | K34: 0.001323529412 | L34: Yes
A35: Plymouth | B35: PA | C35: PLY | D35: 54625 | E35: 2 | F35: MB | G35: 1992 | H35: 4500 | I35: =4500*1216*2000/24/1000000/E35 -> 228 | J35: 148 | K35: 0.001540540541 | L35: Yes
A36: Preston (SEConn) | B36: CT | C36: SEC | D36: 10646 | E36: 2 | F36: MB | G36: 1991 | H36: 5000 | I36: 129.7 | J36: 75 | K36: 0.001729333333 | L36: Yes
A37: Rochester (SEMASS) | B37: MA | C37: SMA | D37: 50290 | E37: 3 | F37: RDF | G37: 1988 | H37: 5000 | I37: 375 | J37: 270.796 | K37: 0.001384806275 | L37: Yes
A38: SE Florida (Dade) | B38: FL | C38: DAD | D38: 10062 | E38: 4 | F38: RDF | G38: 1985 | H38: 5400 | I38: =5400*3000*2000/24/1000000/E38 -> 337.5 | J38: 180 | K38: 0.001875 | L38: Yes
A39: Springfield | B39: MA | C39: SPR | D39: 50273 | E39: 3 | F39: MB | G39: 1988 | H39: 4500 | I39: 153 | J39: 96.6 | K39: 0.001583850932 | L39: Yes
A40: Stanislaus County | B40: CA | C40: STN | D40: 50632 | E40: 2 | F40: MB | G40: 1989 | H40: 5200 | I40: 173.33 | J40: 100.5 | K40: 0.001724676617 | L40: Yes
A41: Tulsa | B41: OK | C41: TUL | D41: 50660 | E41: 3 | F41: MB | G41: 1986 | H41: 4500 | I41: 140.5 | J41: 88.428 | K41: 0.001588863256 | L41: Yes
A42: Union County | B42: NJ | C42: UNI | D42: 50960 | E42: 3 | F42: MB | G42: 1991 | H42: 5400 | I42: 216 | J42: 125.223 | K42: 0.001724922738 | L42: Yes
A43: Wallingford | B43: CT | C43: WAL | D43: 50664 | E43: 3 | F43: MB | G43: 1989 | H43: 5000 | I43: 58.3 | J43: 35.741 | K43: 0.001631179877 | L43: Yes
A44: Warren County | B44: NJ | C44: WER | D44: 10012 | E44: 2 | F44: MB | G44: 1988 | H44: 5300 | I44: 98.97 | J44: 56.217 | K44: 0.001760499493 | L44: Yes
A45: York | B45: PA | C45: YOR | D45: 50215 | E45: 3 | F45: MB | G45: 1989 | H45: 4500 | I45: =4500*1344*2000/24/1000000/E45 -> 168 | J45: 119.6 | K45: 0.001404682274 | L45: Yes

Sheet Revision History (hidden)
A1: Version | B1: Date | C1: Who | D1: Changes
A2: 2 | B2: 2014-01-10 | C2: MVB | D2: - Added Camden, H-Power unit 3, and Tulsa gasification unit (Unit 3) - Updated GWPs, emission factors and default HHVs to reflect Nov 2013 MRR revision - Updated start screen with new corporate logo - Revise macro to hide fuel specific CO2 data for Tier 4 facilities (facilities need to use CERMS data) - Fixed MSW steam equation to subtract steam input from aux. fuel #3 (previously only aux fuels 1&2 were considered) - Added data validation to steam and aux. fuel inputs - Removed instructions pertaining to 2010 reporting year - Added data check on total CO2 emissions relative to MSW processed
A3: 2.0.1 | B3: 2014-03-04 | C3: MVB | D3: - Revised Camden steam production per boiler from 105.4 to 105.5 klb / hr (increase of <0.1%) - Corrected error in equation for lookup of design steam values for different "last" unit, impacts Lee, Hillsborough, and H-Power - Corrected spacing error in "Aggregate data" message box, updated references to "rated" max heat input, removed unused macros in Module 1
A4: 2.1 | B4: 2015-02-11 | C4: MVB | D4: - Added Pinellas, Durham-York, and Burnaby. ( Canadian facilities added for information purposes.) - Removed Hudson Valley. - Corrected error in default C-1 factors for natural gas (factor for MMBtu & kcuft were reversed, but reflected correctly in the main table)
A5: 2.1.1 | B5: 2015-02-19 | C5: MVB | D5: - Removed references in notes column on data entry sheet to specific year (2013) - Updated Durham-York design data to reflect latest design data from operations
